{"text_format":"3","workbook":"xlsx","n_sheets":2,"sheets":["Inicio","Presupuesto para días festivos"],"not_rendered":{"defined_names":1},"read":"whole","date_system":"1900"}

{"sheet":"Inicio","index":0,"n_rows":7,"n_cols":2,"rows_kept":7}
[null,"INFORMACIÓN SOBRE ESTA PLANTILLA"]
[null,"Realice un seguimiento de sus gastos con este planificador de presupuesto para días festivos."]
[null,"Escriba el presupuesto para varios elementos y sus gastos real en las tablas."]
[null,"El presupuesto para el día festivo, el total de gastos reales y la diferencia se calculan automáticamente."]
[null,"Nota: "]
[null,"Se facilitan instrucciones adicionales en la columna A de la hoja de cálculo PRESUPUESTO PARA DÍAS FESTIVOS. Este texto se ha ocultado de forma intencionada. Para eliminar el texto, seleccione la columna A y, a continuación, ELIMINAR. Para mostrar el texto, seleccione la columna A y, a continuación, cambie el color de fuente."]
[null,"Para obtener más información sobre las tablas, presione las teclas MAYÚS y F10 dentro de una tabla, seleccione la opción TABLA y, después, TEXTO ALTERNATIVO."]

{"sheet":"Presupuesto para días festivos","index":1,"n_rows":32,"n_cols":12,"rows_kept":32,"merged":[[1,1,5,4],[2,8,2,9],[3,8,3,9],[4,8,4,9],[6,1,6,4],[6,8,6,11],[15,1,15,4],[15,8,15,11],[25,1,25,4],[25,8,25,11]]}
["Escriba el presupuesto y los gastos real en cada categoría en las respectivas tablas de esta hoja de cálculo. Encontrará instrucciones útiles sobre cómo usar esta hoja de cálculo en las celdas de esta columna. Presione la flecha abajo para empezar. "]
["El título de esta hoja de cálculo se encuentra en la celda de la derecha.","Presupuesto para días festivos"]
["El presupuesto para el día festivo se calcula automáticamente en la celda K3.",{"$nulls":7},"PRESUPUESTO PARA EL DÍA FESTIVO",null,{"$f":"SUM(Regalos[Presupuesto],Empaquetado[Presupuesto],(Viaje[Presupuesto],(Comidas[Presupuesto],(Entretenimiento[Presupuesto],Varios[Presupuesto]))))","v":{"v":750,"d":"750.00 €"}}]
["Los gastos reales se calculan automáticamente en la celda K4.",{"$nulls":7},"GASTOS REALES",null,{"$f":"SUM((Regalos[Real],(Empaquetado[Real],(Viaje[Real],(Comidas[Real],(Entretenimiento[Real],(Varios[Real])))))))","v":{"v":820,"d":"820.00 €"}}]
["La diferencia se calcula automáticamente en la celda K5. La instrucción siguiente se encuentra en la celda A7.",{"$nulls":7},"DIFERENCIA (por encima o por debajo del presupuesto)",null,{"$f":"SUM(K3-K4)","v":{"v":-70,"d":"-70.00 €"}}]
[]
["La etiqueta Regalos se encuentra en la celda de la derecha y la etiqueta Comidas festivas en la celda I7.","Regalos",{"$nulls":6},"Comidas festivas"]
["Escriba los gastos en regalos en la tabla que comidas en la celda de la derecha y los gastos en comida en la tabla que comienza en la celda I8. La instrucción siguiente se encuentra en la celda A16.","Elemento","Presupuesto","Real","Diferencia",{"$nulls":3},"Elemento","Presupuesto","Real","Diferencia"]
[null,"Familia",{"v":500,"d":"500.00 €"},{"v":495,"d":"495.00 €"},{"$f":"Regalos[[#This Row],[Presupuesto]]-Regalos[[#This Row],[Real]]","v":{"v":5,"d":"5.00 €"}},{"$nulls":3},"Alimentos",null,null,{"$f":"Comidas[[#This Row],[Presupuesto]]-Comidas[[#This Row],[Real]]","v":{"v":0,"d":"0.00 €"}}]
[null,"Amigos",{"v":250,"d":"250.00 €"},{"v":325,"d":"325.00 €"},{"$f":"Regalos[[#This Row],[Presupuesto]]-Regalos[[#This Row],[Real]]","v":{"v":-75,"d":"-75.00 €"}},{"$nulls":3},"Bebidas",null,null,{"$f":"Comidas[[#This Row],[Presupuesto]]-Comidas[[#This Row],[Real]]","v":{"v":0,"d":"0.00 €"}}]
[null,"Compañeros de trabajo",null,null,{"$f":"Regalos[[#This Row],[Presupuesto]]-Regalos[[#This Row],[Real]]","v":{"v":0,"d":"0.00 €"}},{"$nulls":3},"Decoraciones",null,null,{"$f":"Comidas[[#This Row],[Presupuesto]]-Comidas[[#This Row],[Real]]","v":{"v":0,"d":"0.00 €"}}]
[null,"Profesores, niñeras, etc.",null,null,{"$f":"Regalos[[#This Row],[Presupuesto]]-Regalos[[#This Row],[Real]]","v":{"v":0,"d":"0.00 €"}},{"$nulls":3},"Otros (presione la tecla Tab en la última columna de esta fila para agregar una fila nueva)",null,null,{"$f":"Comidas[[#This Row],[Presupuesto]]-Comidas[[#This Row],[Real]]","v":{"v":0,"d":"0.00 €"}}]
[null,"Donaciones benéficas",null,null,{"$f":"Regalos[[#This Row],[Presupuesto]]-Regalos[[#This Row],[Real]]","v":{"v":0,"d":"0.00 €"}},{"$nulls":3},"Total",{"$f":"SUBTOTAL(109,Comidas[Presupuesto])","v":{"v":0,"d":"0.00 €"}},{"$f":"SUBTOTAL(109,Comidas[Real])","v":{"v":0,"d":"0.00 €"}},{"$f":"SUBTOTAL(109,Comidas[Diferencia])","v":{"v":0,"d":"0.00 €"}}]
[null,"Otros (presione la tecla Tab en la última columna de esta fila para agregar una fila nueva)",null,null,{"$f":"Regalos[[#This Row],[Presupuesto]]-Regalos[[#This Row],[Real]]","v":{"v":0,"d":"0.00 €"}}]
[null,"Total",{"$f":"SUBTOTAL(109,Regalos[Presupuesto])","v":{"v":750,"d":"750.00 €"}},{"$f":"SUBTOTAL(109,Regalos[Real])","v":{"v":820,"d":"820.00 €"}},{"$f":"SUBTOTAL(109,Regalos[Diferencia])","v":{"v":-70,"d":"-70.00 €"}}]
["La etiqueta Empaquetado se encuentra en la celda de la derecha y la etiqueta Entretenimiento en la celda I16.","Empaquetado",{"$nulls":6},"Entretenimiento"]
["Escriba los gastos de empaquetado en la tabla que comienza en la celda de la derecha y los gastos del entretenimiento en la tabla que comienza en la celda I17. La instrucción siguiente se encuentra en la celda A26.","Elemento","Presupuesto","Real","Diferencia",{"$nulls":3},"Elemento","Presupuesto","Real","Diferencia"]
[null,"Papel de envolver",null,null,{"$f":"Empaquetado[[#This Row],[Presupuesto]]-Empaquetado[[#This Row],[Real]]","v":{"v":0,"d":"0.00 €"}},{"$nulls":3},"Ayuda para la fiesta (camareros, catering, limpiadores, etc.)",null,null,{"$f":"Entretenimiento[[#This Row],[Presupuesto]]-Entretenimiento[[#This Row],[Real]]","v":{"v":0,"d":"0.00 €"}}]
[null,"Etiquetas",null,null,{"$f":"Empaquetado[[#This Row],[Presupuesto]]-Empaquetado[[#This Row],[Real]]","v":{"v":0,"d":"0.00 €"}},{"$nulls":3},"Decoraciones",null,null,{"$f":"Entretenimiento[[#This Row],[Presupuesto]]-Entretenimiento[[#This Row],[Real]]","v":{"v":0,"d":"0.00 €"}}]
[null,"Material (lazos, cinta adhesiva, etc.)",null,null,{"$f":"Empaquetado[[#This Row],[Presupuesto]]-Empaquetado[[#This Row],[Real]]","v":{"v":0,"d":"0.00 €"}},{"$nulls":3},"Comida y bebidas",null,null,{"$f":"Entretenimiento[[#This Row],[Presupuesto]]-Entretenimiento[[#This Row],[Real]]","v":{"v":0,"d":"0.00 €"}}]
[null,"Cajas",null,null,{"$f":"Empaquetado[[#This Row],[Presupuesto]]-Empaquetado[[#This Row],[Real]]","v":{"v":0,"d":"0.00 €"}},{"$nulls":3},"Ropa",null,null,{"$f":"Entretenimiento[[#This Row],[Presupuesto]]-Entretenimiento[[#This Row],[Real]]","v":{"v":0,"d":"0.00 €"}}]
[null,"Gastos de envío",null,null,{"$f":"Empaquetado[[#This Row],[Presupuesto]]-Empaquetado[[#This Row],[Real]]","v":{"v":0,"d":"0.00 €"}},{"$nulls":3},"Entradas",null,null,{"$f":"Entretenimiento[[#This Row],[Presupuesto]]-Entretenimiento[[#This Row],[Real]]","v":{"v":0,"d":"0.00 €"}}]
[null,"Otros (presione la tecla Tab en la última columna de esta fila para agregar una fila nueva)",null,null,{"$f":"Empaquetado[[#This Row],[Presupuesto]]-Empaquetado[[#This Row],[Real]]","v":{"v":0,"d":"0.00 €"}},{"$nulls":3},"Comidas fuera de casa",null,null,{"$f":"Entretenimiento[[#This Row],[Presupuesto]]-Entretenimiento[[#This Row],[Real]]","v":{"v":0,"d":"0.00 €"}}]
[null,"Total",{"$f":"SUBTOTAL(109,Empaquetado[Presupuesto])","v":{"v":0,"d":"0.00 €"}},{"$f":"SUBTOTAL(109,Empaquetado[Real])","v":{"v":0,"d":"0.00 €"}},{"$f":"SUBTOTAL(109,Empaquetado[Diferencia])","v":{"v":0,"d":"0.00 €"}},{"$nulls":3},"Otros (presione la tecla Tab en la última columna de esta fila para agregar una fila nueva)",null,null,{"$f":"Entretenimiento[[#This Row],[Presupuesto]]-Entretenimiento[[#This Row],[Real]]","v":{"v":0,"d":"0.00 €"}}]
[{"$nulls":8},"Total",{"$f":"SUBTOTAL(109,Entretenimiento[Presupuesto])","v":{"v":0,"d":"0.00 €"}},{"$f":"SUBTOTAL(109,Entretenimiento[Real])","v":{"v":0,"d":"0.00 €"}},{"$f":"SUBTOTAL(109,Entretenimiento[Diferencia])","v":{"v":0,"d":"0.00 €"}}]
["La etiqueta Viaje se encuentra en la celda de la derecha y la etiqueta Varios en la celda I26.","Viaje",{"$nulls":6},"Varios"]
["Escriba los gastos de viaje en la tabla que comienza en la celda de la derecha y los gastos varios en la tabla que comienza en la celda I27.","Elemento","Presupuesto","Real","Diferencia",{"$nulls":3},"Elemento","Presupuesto","Real","Diferencia"]
[null,"Tarifa aérea",null,null,{"$f":"Viaje[[#This Row],[Presupuesto]]-Viaje[[#This Row],[Real]]","v":{"v":0,"d":"0.00 €"}},{"$nulls":3},"Fotos del día festivo",null,null,{"$f":"Varios[[#This Row],[Presupuesto]]-Varios[[#This Row],[Real]]","v":{"v":0,"d":"0.00 €"}}]
[null,"Alojamiento",null,null,{"$f":"Viaje[[#This Row],[Presupuesto]]-Viaje[[#This Row],[Real]]","v":{"v":0,"d":"0.00 €"}},{"$nulls":3},"Combustible ",null,null,{"$f":"Varios[[#This Row],[Presupuesto]]-Varios[[#This Row],[Real]]","v":{"v":0,"d":"0.00 €"}}]
[null,"Transporte",null,null,{"$f":"Viaje[[#This Row],[Presupuesto]]-Viaje[[#This Row],[Real]]","v":{"v":0,"d":"0.00 €"}},{"$nulls":3},"Otros (presione la tecla Tab en la última columna de esta fila para agregar una fila nueva)",null,null,{"$f":"Varios[[#This Row],[Presupuesto]]-Varios[[#This Row],[Real]]","v":{"v":0,"d":"0.00 €"}}]
[null,"Otros (presione la tecla Tab en la última columna de esta fila para agregar una fila nueva)",null,null,{"$f":"Viaje[[#This Row],[Presupuesto]]-Viaje[[#This Row],[Real]]","v":{"v":0,"d":"0.00 €"}},{"$nulls":3},"Total",{"$f":"SUBTOTAL(109,Varios[Presupuesto])","v":{"v":0,"d":"0.00 €"}},{"$f":"SUBTOTAL(109,Varios[Real])","v":{"v":0,"d":"0.00 €"}},{"$f":"SUBTOTAL(109,Varios[Diferencia])","v":{"v":0,"d":"0.00 €"}}]
[null,"Total",{"$f":"SUBTOTAL(109,Viaje[Presupuesto])","v":{"v":0,"d":"0.00 €"}},{"$f":"SUBTOTAL(109,Viaje[Real])","v":{"v":0,"d":"0.00 €"}},{"$f":"SUBTOTAL(109,Viaje[Diferencia])","v":{"v":0,"d":"0.00 €"}}]